bitfinex/quotes_SOLUSD_20240712
["timestamp","ask_amount","ask_price","bid_price","bid_amount"]
[1720764023763,20.0,135.86,135.78,15.6002]
[1720764024064,20.0,135.86,135.78,44.8302]
[1720764024569,15.05622637,135.87,135.78,44.8302]
[1720764024859,7.3605,135.86,135.78,15.6002]
[1720764025038,7.361,135.85,135.78,15.6002]
[1720764025233,29.82622637,135.87,135.78,15.6002]
[1720764025444,26.09632637,135.87,135.78,15.6002]
[1720764025637,7.3615,135.85,135.78,15.6002]
[1720764025859,20.0,135.84,135.78,15.6002]
[1720764027863,27.3616,135.84,135.78,15.6002]
[1720764028292,7.3624,135.83,135.78,15.6002]
[1720764028762,20.0,135.82,135.78,15.6002]
[1720764028941,27.3627,135.82,135.78,15.6002]
[1720764029464,7.3638,135.8,135.76,6.2792]
[1720764029644,20.0,135.79,135.75,15.9679]
[1720764029843,27.3644,135.79,135.75,15.9679]
[1720764030353,20.0,135.79,135.75,15.9679]
[1720764033852,20.0,135.84,135.75,15.9679]
[1720764034050,59.05732048,135.85,135.75,15.9679]
[1720764034051,7.69732048,135.85,135.75,15.9679]
[1720764034251,7.69732048,135.85,135.76,1.47288227]
[1720764034461,7.69732048,135.85,135.77,1.47277378]
[1720764034660,7.3617,135.84,135.77,1.47277378]
[1720764035166,7.3622,135.83,135.77,1.47277378]
[1720764035543,7.69732048,135.85,135.78,0.72417586]
[1720764035868,7.3586,135.9,135.8,29.23]
[1720764036173,7.3586,135.9,135.81,52.10031588]
[1720764037068,27.3588,135.89,135.81,52.10031588]
[1720764037245,27.3588,135.89,135.82,1.47212122]
[1720764037448,27.3588,135.89,135.83,1.47201284]
[1720764038367,27.3588,135.89,135.84,1.47190447]
[1720764038688,27.3588,135.89,135.82,1.47212379]
[1720764039350,27.3588,135.89,135.83,1.47213429]
[1720764039659,7.3595,135.88,135.83,1.47213429]
[1720764039860,27.36,135.87,135.83,1.47213429]
[1720764040069,27.3609,135.86,135.81,6.3763]
[1720764040239,7.3609,135.86,135.81,6.3763]
[1720764041171,7.3612,135.85,135.81,6.3763]
[1720764041555,20.0,135.84,135.81,6.3763]
[1720764041876,27.3616,135.84,135.79,15.178]
[1720764042046,7.3621,135.83,135.79,15.178]
[1720764042241,20.0,135.82,135.79,15.178]
[1720764042866,20.0,135.83,135.79,15.178]
[1720764043342,27.3626,135.83,135.79,15.178]
[1720764043840,20.0,135.83,135.79,15.178]
[1720764044044,7.3614,135.85,135.79,15.178]
[1720764044259,27.3616,135.84,135.79,15.178]
[1720764044569,27.3621,135.83,135.79,15.178]
[1720764044755,7.3618,135.84,135.79,15.178]
[1720764044957,20.0,135.83,135.79,15.178]
[1720764045677,24.5991,135.87,135.79,15.178]
[1720764045678,20.0,135.86,135.79,15.178]
[1720764045855,7.3617,135.84,135.79,15.178]
[1720764046054,20.0,135.83,135.79,15.178]
[1720764048294,7.6961514,135.87,135.79,15.178]
[1720764048457,15.0562514,135.87,135.79,15.178]
[1720764048780,7.3601,135.87,135.79,15.178]
[1720764049477,20.0,135.86,135.79,15.178]
[1720764050280,27.3606,135.86,135.79,15.178]
[1720764051066,27.3606,135.86,135.8,0.49880445]
[1720764051271,15.05505408,135.89,135.8,45.49880445]
[1720764051957,7.3594,135.88,135.8,45.49880445]
[1720764052258,7.36,135.87,135.8,45.49880445]
[1720764052467,27.3608,135.86,135.8,45.0]
[1720764052652,27.3608,135.86,135.79,15.178]
[1720764052856,20.0,135.86,135.79,15.178]
[1720764053068,20.0,135.86,135.8,45.0]
[1720764054764,7.36,135.87,135.8,45.0]
[1720764055293,15.05485408,135.89,135.8,45.0]
[1720764055486,20.0,135.88,135.8,45.0]
[1720764055801,27.3595,135.88,135.8,45.0]
[1720764055963,7.3601,135.87,135.8,45.0]
[1720764056566,27.3596,135.88,135.8,45.0]
[1720764057187,27.3596,135.88,135.81,6.032]
[1720764057188,20.0,135.88,135.81,6.032]
[1720764057495,20.0,135.88,135.83,16.3943]
[1720764057787,7.3577,135.92,135.84,1.47208393]
[1720764057968,12.16530397,135.91,135.84,1.47208393]
[1720764058169,7.3577,135.92,135.84,1.47208393]
[1720764058384,11.82935555,135.91,135.84,1.47208393]
[1720764058698,7.69344818,135.93,135.83,16.3943]
[1720764058699,7.3589,135.89,135.83,16.3943]
[1720764058982,7.3585,135.9,135.83,16.3943]
[1720764060263,7.3579,135.91,135.83,16.3943]
[1720764060464,20.0,135.9,135.83,16.3943]
[1720764061885,20.0,135.9,135.84,45.0]
[1720764064068,20.0,135.91,135.84,45.0]
[1720764064995,27.3578,135.91,135.84,45.0]
[1720764065686,20.0,135.91,135.84,45.0]
[1720764066898,27.3578,135.91,135.84,45.0]
[1720764068076,7.69344818,135.93,135.85,6.2651]
[1720764068286,7.69344818,135.93,135.86,45.0]
[1720764068502,48.24422283,135.99,135.86,74.23]
[1720764068503,7.3555,135.96,135.86,74.23]
[1720764068795,7.3555,135.96,135.87,15.7618]
[1720764069675,7.3559,135.95,135.87,15.7618]
[1720764069873,7.3573,135.92,135.87,15.7618]
[1720764070490,7.3568,135.93,135.87,15.7618]
[1720764070677,20.0,135.92,135.87,15.7618]
[1720764072685,20.0,135.93,135.87,15.7618]
[1720764072992,20.0,135.95,135.87,15.7618]
[1720764074414,20.0,135.95,135.88,45.0]
[1720764075004,27.3557,135.95,135.88,45.0]
[1720764075302,20.0,135.95,135.87,15.7618]
[1720764075476,7.3564,135.94,135.87,15.7618]
[1720764075800,27.3567,135.93,135.87,15.7618]
[1720764075999,7.3567,135.93,135.87,15.7618]
[1720764077801,7.3563,135.94,135.87,15.7618]
[1720764077980,7.69377504,135.97,135.87,15.7618]
[1720764077981,20.0,135.93,135.87,15.7618]
[1720764078183,20.0,135.93,135.88,45.0]
[1720764078398,20.0,135.93,135.87,15.7618]
[1720764078700,27.3562,135.94,135.87,15.7618]
[1720764079012,20.0,135.94,135.87,15.7618]
[1720764079195,20.0,135.95,135.88,45.0]
[1720764081606,7.69658184,135.96,135.89,6.2925]
[1720764081784,7.3547,135.97,135.89,6.2925]
[1720764082685,7.3551,135.96,135.89,6.2925]
[1720764082999,27.3558,135.95,135.89,6.2925]
[1720764083500,20.0,135.95,135.89,6.2925]
[1720764085196,27.3556,135.95,135.89,6.2925]
[1720764085718,20.0,135.95,135.89,6.2925]
[1720764087320,27.3557,135.95,135.89,6.2925]
[1720764088200,20.0,135.95,135.89,6.2925]
[1720764091620,27.3556,135.95,135.89,6.2925]
[1720764092410,7.3563,135.94,135.89,6.2925]
[1720764092607,27.357,135.93,135.89,6.2925]
[1720764092799,7.3564,135.94,135.89,6.2925]
[1720764093000,20.0,135.93,135.89,6.2925]
[1720764094699,20.0,135.94,135.89,6.2925]
[1720764096413,20.0,135.95,135.89,6.2925]
[1720764097414,20.0,135.95,135.9,0.97390579]
[1720764097803,20.0,135.95,135.89,6.2925]
[1720764098504,20.0,135.95,135.9,14.58]
[1720764098711,27.3557,135.95,135.9,14.58]
[1720764100527,41.9357,135.95,135.9,14.58]
[1720764102133,27.3557,135.95,135.9,14.58]
[1720764104128,27.3557,135.95,135.89,6.2925]
[1720764104332,27.3557,135.95,135.91,14.58]
[1720764105337,20.0,135.95,135.92,16.1336]
[1720764105505,2.95787515,135.99,135.92,30.7136]
[1720764105834,7.3546,135.97,135.92,30.7136]
[1720764106027,4.46861357,135.96,135.92,30.7136]
[1720764106229,7.3546,135.97,135.92,30.7136]
[1720764106823,20.0,135.96,135.92,30.7136]
[1720764108634,20.0,135.96,135.92,16.1336]
[1720764108835,20.0,135.96,135.95,14.58]
[1720764109035,20.0,135.99,135.95,14.58]
[1720764109240,4.46837364,135.98,135.95,14.58]
[1720764109414,20.0,135.99,135.95,14.58]
[1720764109617,4.46791256,135.98,135.95,14.58]
[1720764109815,27.3536,135.99,135.95,14.58]
[1720764110015,4.4679576,135.98,135.95,14.58]
[1720764110248,27.3536,135.99,135.95,14.58]
[1720764110540,4.4679576,135.98,135.95,14.58]
[1720764110862,27.3536,135.99,135.95,14.58]
[1720764111038,11.82195673,135.98,135.95,14.58]
[1720764111342,20.0,135.97,135.94,6.6274]
[1720764111510,24.46819096,135.97,135.94,21.2074]
[1720764111715,20.0,135.97,135.94,21.2074]
[1720764113238,27.3546,135.97,135.94,6.6274]
[1720764113434,41.9346,135.97,135.94,6.6274]
[1720764113933,41.9346,135.97,135.92,16.1336]
[1720764114120,4.46836987,135.96,135.92,30.7136]
[1720764114315,7.3553,135.96,135.92,30.7136]
[1720764114553,27.3548,135.97,135.93,14.58]
[1720764114845,11.82344914,135.96,135.93,14.58]
[1720764115038,27.3547,135.97,135.93,14.58]
[1720764115428,7.3552,135.96,135.93,14.58]
[1720764117131,27.3547,135.97,135.93,14.58]
[1720764118358,4.46824699,135.96,135.93,14.58]
[1720764118539,27.3547,135.97,135.93,14.58]
[1720764118741,4.46824786,135.96,135.93,14.58]
[1720764118921,27.3547,135.97,135.93,14.58]
[1720764119125,4.46824699,135.96,135.93,14.58]
[1720764119441,27.3547,135.97,135.94,14.58]
[1720764119748,27.3547,135.97,135.93,14.58]
[1720764120418,7.3552,135.96,135.93,14.58]
[1720764120640,19.04895897,135.95,135.88,16.6361]
[1720764120849,21.9374,135.92,135.88,16.6361]
[1720764121149,7.3578,135.91,135.88,16.6361]
[1720764121920,21.9373,135.92,135.88,16.6361]
[1720764122450,14.58,135.92,135.88,16.6361]
[1720764122858,21.9368,135.93,135.88,31.2161]
[1720764123154,24.47063973,135.92,135.88,31.2161]
[1720764123358,20.0,135.92,135.88,31.2161]
[1720764123553,20.0,135.92,135.89,14.58]
[1720764123750,20.0,135.93,135.9,14.58]
[1720764123956,20.0,135.94,135.9,14.58]
[1720764124140,20.0,135.94,135.88,16.6361]
[1720764124333,20.0,135.94,135.93,14.58]
[1720764126244,7.3547,135.97,135.93,30.8118]
[1720764126443,20.0,135.96,135.93,16.2318]
[1720764127337,7.69975106,135.99,135.93,16.2318]
[1720764127530,4.46803696,135.98,135.93,16.2318]
[1720764127737,7.3532,136.0,135.94,1.46922514]
[1720764127936,11.82103219,135.99,135.94,1.46922514]
[1720764128157,7.3536,135.99,135.93,16.2318]
[1720764128660,7.3536,135.99,135.94,0.72978812]
[1720764129439,18.3818,136.01,135.93,16.2318]
[1720764129631,36.49167109,136.0,135.93,16.2318]
[1720764129837,16.49167109,135.99,135.93,16.2318]
[1720764130047,4.4675457,135.98,135.93,16.2318]
[1720764130239,7.3541,135.98,135.93,16.2318]
[1720764130959,7.3535,135.99,135.93,16.2318]
[1720764132646,38.3797,136.02,135.93,16.2318]
[1720764132854,16.49148594,136.01,135.93,16.2318]
[1720764133054,7.3538,135.99,135.93,16.2318]
[1720764133758,7.3541,135.98,135.93,16.2318]
[1720764134364,7.3547,135.97,135.93,16.2318]
[1720764135741,7.3551,135.96,135.93,16.2318]
[1720764136065,7.3558,135.95,135.91,15.2721]
[1720764136563,7.3553,135.96,135.91,15.2721]
[1720764136945,7.3556,135.95,135.91,15.2721]
[1720764137147,7.3551,135.96,135.91,15.2721]
[1720764139367,15.05542831,135.97,135.91,15.2721]
[1720764139575,20.0,135.96,135.91,15.2721]
[1720764143676,27.3553,135.96,135.91,15.2721]
[1720764145665,7.3557,135.95,135.91,15.2721]
[1720764145865,27.3553,135.96,135.91,15.2721]
[1720764148385,4.46900901,135.95,135.91,15.2721]
[1720764148572,14.59,135.95,135.91,15.2721]
[1720764148774,20.0,135.94,135.91,15.2721]
[1720764149756,34.59,135.96,135.91,29.8621]
[1720764150778,41.9452,135.96,135.91,29.8621]
[1720764150975,41.9452,135.96,135.91,15.2721]
[1720764151167,14.59,135.95,135.91,15.2721]
[1720764151367,20.0,135.94,135.91,15.2721]
[1720764152377,14.59,135.92,135.87,15.0432]
[1720764152586,14.59,135.88,135.85,6.2048]
[1720764152787,14.59,135.87,135.84,15.0432]
[1720764152967,20.0,135.86,135.84,15.0432]
[1720764153167,34.59,135.86,135.84,15.0432]
[1720764153404,20.0,135.86,135.84,15.0432]
[1720764153980,20.0,135.87,135.84,15.0432]
[1720764156085,20.0,135.88,135.84,30.29881161]
[1720764156276,7.3584,135.9,135.84,30.29881161]
[1720764156465,21.9484,135.9,135.85,14.59]
[1720764157082,7.3584,135.9,135.85,15.25611363]
[1720764157467,20.0,135.89,135.85,14.59]
[1720764158569,7.3578,135.91,135.87,14.59]
[1720764158773,14.59,135.92,135.87,14.59]
[1720764158987,21.9475,135.92,135.87,14.59]
[1720764160005,20.0,135.91,135.87,14.59]
[1720764160297,7.3587,135.9,135.86,6.5275]
[1720764160479,21.9487,135.9,135.86,6.5275]
[1720764160989,7.3587,135.9,135.86,6.5275]
[1720764162492,21.9479,135.91,135.86,6.5275]
[1720764162696,20.0,135.9,135.86,6.5275]
[1720764162912,34.59,135.9,135.84,29.6332]
[1720764163080,21.9491,135.89,135.84,15.0432]
[1720764163282,14.59,135.87,135.84,15.0432]
[1720764163592,20.0,135.9,135.84,15.0432]
[1720764163792,14.59,135.89,135.84,29.6332]
[1720764163978,14.59,135.88,135.84,15.0432]
[1720764165112,21.949,135.89,135.84,29.6332]
[1720764165296,20.0,135.88,135.84,29.6332]
[1720764166210,34.59,135.88,135.84,15.0432]
[1720764167709,20.0,135.88,135.84,15.0432]
[1720764168084,27.3587,135.9,135.84,29.6332]
[1720764168299,27.3587,135.9,135.84,15.0432]
[1720764168300,14.59,135.88,135.84,15.0432]
[1720764170808,34.59,135.87,135.84,15.0432]
[1720764172697,14.59,135.86,135.84,15.0432]
[1720764174413,20.0,135.87,135.84,15.0432]
[1720764174616,7.70656057,135.89,135.84,15.0432]
[1720764174617,34.59,135.88,135.84,15.0432]
[1720764175927,14.59,135.87,135.84,15.0432]
[1720764176889,20.0,135.88,135.86,14.59]
[1720764177096,7.3562,135.94,135.87,14.59]
[1720764177290,14.59,135.93,135.88,14.59]
[1720764178216,24.87412207,135.94,135.88,14.59]
[1720764178440,20.0,135.93,135.88,14.59]
[1720764179222,20.0,135.93,135.89,14.59]
[1720764179999,27.3567,135.93,135.89,14.59]
[1720764180314,20.0,135.93,135.9,16.5954]
[1720764180517,7.3552,135.96,135.91,14.59]
[1720764180699,7.3552,135.96,135.92,14.59]
[1720764181510,7.3547,135.97,135.92,14.59]
[1720764181911,20.0,135.96,135.93,14.59]
[1720764184820,20.0,135.96,135.92,14.59]
[1720764185912,20.0,135.96,135.93,14.59]
[1720764187319,7.70227889,135.98,135.95,14.59]
[1720764187527,7.3525,136.01,135.97,14.59]
[1720764187821,21.9419,136.02,135.97,14.59]
[1720764187996,7.3519,136.02,135.98,14.59]
[1720764188610,7.3519,136.02,135.96,17.00348465]
[1720764189026,7.69927205,136.04,135.96,17.00348465]
[1720764189230,7.3511,136.04,135.96,17.00348465]
[1720764189432,7.3511,136.04,135.97,45.0]
[1720764189612,7.3514,136.03,135.97,45.0]
[1720764189798,7.3504,136.05,135.97,45.0]
[1720764190131,3.43283738,136.06,135.97,45.0]
[1720764191003,23.43283738,136.06,135.97,45.0]
[1720764191496,7.3514,136.03,135.97,45.0]
[1720764192112,18.3761,136.05,135.96,15.5333]
[1720764192312,7.3524,136.01,135.96,15.5333]
[1720764192723,18.3761,136.05,135.96,15.5333]
[1720764192923,20.0,136.04,135.96,15.5333]
[1720764193124,7.3514,136.03,135.96,15.5333]
[1720764193327,20.0,136.02,135.96,15.5333]
[1720764193633,20.0,136.04,135.97,45.0]
[1720764193924,20.0,136.04,135.98,1.47032716]
[1720764194126,30.28283738,136.06,135.99,1.47021903]
[1720764194308,7.3502,136.05,135.97,45.0]
[1720764194637,20.0,136.04,135.97,45.0]
[1720764196407,20.0,136.04,135.96,15.5333]
[1720764196710,7.3508,136.04,135.96,15.5333]
[1720764196909,20.0,136.03,135.96,15.5333]
[1720764197539,7.3527,136.01,135.96,15.5333]
[1720764197713,20.0,136.0,135.96,15.5333]
[1720764198038,27.3529,136.0,135.96,15.5333]
[1720764198409,20.0,136.0,135.96,15.5333]
[1720764198737,20.0,136.01,135.96,15.5333]
[1720764198903,7.3527,136.01,135.96,15.5333]
[1720764199105,20.0,136.0,135.96,15.5333]
[1720764199924,20.0,136.01,135.96,15.5333]
[1720764200112,20.0,136.02,135.96,15.5333]
[1720764200637,27.3513,136.03,135.96,15.5333]
[1720764200829,7.69904208,136.05,135.96,15.5333]
[1720764200830,7.3508,136.04,135.96,15.5333]
[1720764201429,7.69904208,136.05,135.96,15.5333]
[1720764201430,15.04934208,136.05,135.96,15.5333]
[1720764201614,7.3503,136.05,135.97,45.0]
[1720764202824,20.0,136.04,135.97,45.0]
[1720764204912,20.0,136.04,135.98,1.16561033]
[1720764205117,7.3513,136.03,135.97,45.0]
[1720764205440,7.351,136.04,135.97,45.0]
[1720764205619,20.0,136.03,135.97,45.0]
[1720764205954,20.0,136.03,135.98,0.44345051]
[1720764206528,20.0,136.04,135.98,0.44345051]
[1720764207534,20.0,136.04,135.98,0.92879082]
[1720764207741,20.0,136.04,135.99,0.92878777]
[1720764209248,20.0,136.04,136.0,0.95304505]
[1720764209418,0.0341723,136.06,135.99,21.8598]
[1720764209620,0.0341723,136.06,136.0,45.58350464]
[1720764209841,0.0341723,136.06,136.01,16.1636]
[1720764210042,0.0341723,136.06,136.02,45.0]
[1720764211039,0.0341723,136.06,136.01,16.1636]
[1720764211440,0.0341723,136.06,136.02,45.0]
[1720764216653,0.0341723,136.06,136.02,74.13]
[1720764217433,0.0341723,136.06,136.05,15.8]
[1720764217637,0.0341723,136.06,136.05,62.26604097]
[1720764218246,7.3451,136.15,136.05,62.26604097]
[1720764218454,7.3455,136.14,136.06,45.0]
[1720764218731,7.3455,136.14,136.07,1.46589937]
[1720764218959,7.3459,136.13,136.07,1.46589937]
[1720764219153,7.3466,136.12,136.07,1.46589937]
[1720764219335,51.03406752,136.16,136.05,15.8]
[1720764219541,7.3472,136.11,136.05,15.8]
[1720764220059,20.0,136.1,136.05,15.8]
[1720764220547,20.0,136.11,136.05,15.8]
[1720764221342,27.3471,136.11,136.05,15.8]
[1720764221652,20.0,136.11,136.05,15.8]
[1720764222748,20.0,136.12,136.06,45.0]
[1720764223260,27.3465,136.12,136.06,45.0]
[1720764223557,27.3465,136.12,136.05,15.8]
[1720764228156,20.0,136.12,136.05,15.8]
[1720764228366,20.0,136.12,136.06,45.0]
[1720764228541,20.0,136.13,136.06,45.0]
[1720764230339,20.0,136.13,136.07,1.46940079]
[1720764230542,27.3459,136.13,136.08,1.4692928]
[1720764230751,33.00014819,136.16,136.09,7.31294304]
[1720764231069,33.941,136.17,136.09,7.31294304]
[1720764231070,7.3452,136.15,136.09,7.31294304]
[1720764231439,7.3452,136.15,136.1,1.46922485]
[1720764231644,7.3454,136.14,136.06,51.5184]
[1720764231953,33.941,136.17,136.06,51.5184]
[1720764232154,7.3466,136.12,136.06,51.5184]
[1720764232353,7.3459,136.14,136.06,51.5184]
[1720764232656,7.3459,136.13,136.08,14.54]
[1720764232862,21.8859,136.13,136.08,14.54]
[1720764234070,7.3459,136.13,136.08,14.54]
[1720764234366,21.8855,136.14,136.08,14.54]
[1720764234567,20.0,136.13,136.08,14.54]
[1720764234861,20.0,136.13,136.1,14.54]
[1720764235047,14.54,136.15,136.1,14.54]
[1720764235246,20.0,136.14,136.1,14.54]
[1720764235447,20.0,136.14,136.09,14.54]
[1720764236046,20.0,136.14,136.1,14.54]
[1720764236569,20.0,136.14,136.09,14.54]
[1720764236767,34.54,136.14,136.09,14.54]
[1720764237070,34.54,136.14,136.08,14.54]
[1720764237270,20.0,136.14,136.08,14.54]
[1720764237472,34.54,136.14,136.08,14.54]
[1720764237773,14.54,136.13,136.08,14.54]
[1720764237956,14.54,136.13,136.07,14.54]
[1720764238155,21.886,136.13,136.07,14.54]
[1720764238357,20.0,136.12,136.07,14.54]
[1720764238873,34.54,136.12,136.07,14.54]
[1720764239271,41.8868,136.12,136.07,14.54]
[1720764239579,14.54,136.11,136.06,14.54]
[1720764239765,20.0,136.1,136.06,14.54]
[1720764240078,20.0,136.1,136.07,14.54]
[1720764240253,20.0,136.1,136.08,14.54]
[1720764240448,34.54,136.13,136.08,14.54]
[1720764241379,36.18302113,136.18,136.11,14.54]
[1720764241557,30.1215,136.17,136.06,6.3097]
[1720764241745,21.8846,136.16,136.1,14.54]
[1720764242066,7.3455,136.14,136.07,45.0]
[1720764242247,21.8855,136.14,136.09,14.54]
[1720764242448,20.0,136.13,136.09,14.54]
[1720764242648,14.54,136.14,136.09,14.54]
[1720764243049,7.69249942,136.16,136.07,45.0]
[1720764243255,30.1215,136.17,136.08,16.00915391]
[1720764243453,37.4653,136.17,136.11,14.54]
[1720764243856,15.5815,136.17,136.11,14.54]
[1720764244071,30.1215,136.17,136.11,14.54]
[1720764244266,15.5815,136.17,136.11,14.54]
[1720764244469,30.1215,136.17,136.11,14.54]
[1720764244866,30.1215,136.17,136.07,45.0]
[1720764245066,30.1215,136.17,136.12,14.54]
[1720764245765,15.5815,136.17,136.12,14.54]
[1720764245986,14.54,136.17,136.13,15.523]
[1720764246151,15.03351062,136.19,136.14,14.54]
[1720764246357,20.0,136.18,136.14,14.54]
[1720764247857,20.0,136.18,136.15,14.54]
[1720764248053,20.0,136.18,136.14,14.54]
[1720764248763,20.0,136.18,136.13,30.063]
[1720764249595,41.8833,136.18,136.13,30.063]
[1720764249759,41.8833,136.18,136.13,15.523]
[1720764249959,41.8833,136.18,136.13,30.063]
[1720764250181,34.54,136.18,136.13,30.063]
[1720764252381,20.0,136.18,136.14,14.54]
[1720764255462,0.8446084,136.2,136.16,14.54]
[1720764255872,0.8446084,136.2,136.17,14.54]
[1720764256065,0.8446084,136.2,136.18,14.54]
[1720764258469,0.8446084,136.2,136.19,14.54]
[1720764258972,0.8446084,136.2,136.18,14.54]
[1720764259176,0.8446084,136.2,136.17,14.54]
[1720764261288,0.8446084,136.2,136.18,14.54]
[1720764264280,0.8446084,136.2,136.19,14.54]
[1720764266794,0.8446084,136.2,136.14,6.0308]
[1720764267105,0.8446084,136.2,136.18,14.54]
[1720764269002,0.8446084,136.2,136.15,45.0]
[1720764269188,0.8446084,136.2,136.19,14.54]
[1720764269390,0.8446084,136.2,136.19,59.54]
[1720764271797,0.8446084,136.2,136.19,65.9738]
[1720764271998,20.04365414,136.28,136.19,102.6238]
[1720764272205,20.04365414,136.28,136.25,14.54]
[1720764272402,20.04365414,136.28,136.19,51.4338]
[1720764272618,0.04365414,136.28,136.2,45.0]
[1720764272814,0.04365414,136.28,136.24,14.54]
[1720764277091,0.04365414,136.28,136.25,14.54]
[1720764278098,0.04365414,136.28,136.24,14.54]
[1720764278407,0.04365414,136.28,136.2,45.0]
[1720764278612,0.04365414,136.28,136.24,14.54]
[1720764279511,0.04365414,136.28,136.25,14.54]
[1720764281512,0.04365414,136.28,136.27,14.54]
[1720764282412,0.04365414,136.28,136.23,16.1432]
[1720764282615,0.04365414,136.28,136.27,14.54]
[1720764284120,0.04365414,136.28,136.25,14.54]
[1720764285904,0.04365414,136.28,136.24,14.54]
[1720764287815,0.04365414,136.28,136.25,14.54]
[1720764288319,0.04365414,136.28,136.22,58.16]
[1720764288521,0.04365414,136.28,136.23,45.0]
[1720764291223,0.04365414,136.28,136.24,14.54]
[1720764292618,0.04365414,136.28,136.25,14.54]
[1720764296618,0.04365414,136.28,136.19,21.9853]
[1720764296619,14.54,136.27,136.19,21.9853]
[1720764296824,14.54,136.27,136.22,14.54]
[1720764299027,0.04365414,136.28,136.22,14.54]
[1720764299224,14.54,136.27,136.22,14.54]
[1720764300328,0.04365414,136.28,136.23,14.54]
[1720764300516,0.04365414,136.28,136.19,21.9853]
[1720764300517,14.54,136.27,136.22,14.54]
[1720764301232,14.54,136.26,136.19,15.5515]
[1720764301406,14.54,136.25,136.2,14.54]
[1720764301607,14.54,136.22,136.15,16.5861]
[1720764301806,14.54,136.22,136.17,14.54]
[1720764302012,21.8457,136.24,136.15,16.5861]
[1720764302013,14.54,136.23,136.18,14.54]
[1720764302224,36.3857,136.24,136.15,31.1261]
[1720764302424,20.0,136.23,136.19,14.54]
[1720764302608,20.0,136.23,136.2,14.54]
[1720764302913,15.6247,136.24,136.21,14.54]
[1720764303312,15.6247,136.24,136.15,16.5861]
[1720764303506,21.8816,136.21,136.16,14.54]
[1720764303718,7.3421,136.2,136.15,14.54]
[1720764303931,21.8821,136.2,136.11,15.2209]
[1720764304125,14.54,136.19,136.14,14.54]
[1720764304332,14.54,136.19,136.11,15.2209]
[1720764304535,14.54,136.19,136.14,14.54]
[1720764305116,7.3421,136.2,136.14,14.54]
[1720764305117,21.8821,136.2,136.14,14.54]
[1720764305533,21.8821,136.2,136.15,14.54]
[1720764306641,56.0847,136.24,136.19,14.54]
[1720764306642,21.8055,136.24,136.19,14.54]
[1720764308030,14.54,136.23,136.18,14.54]
[1720764308256,21.8055,136.24,136.18,14.54]
[1720764308546,36.3455,136.24,136.19,14.54]
[1720764308908,43.6855,136.24,136.19,14.54]
[1720764309236,41.8805,136.23,136.18,14.54]
[1720764310453,20.0,136.23,136.18,14.54]
[1720764310835,14.54,136.22,136.11,37.3309]
[1720764311155,14.54,136.22,136.17,14.54]
[1720764312452,34.54,136.23,136.18,14.54]
[1720764312671,20.0,136.23,136.18,14.54]
[1720764312971,34.54,136.23,136.18,14.54]
[1720764316457,20.0,136.23,136.19,16.00784184]